{"text_format":"1","workbook":"xlsx","n_sheets":9,"sheets":["Instructivo","DEMANDA ANUAL","VOLUMEN DE QUEJAS","COSTO ADMINISTRACIÓN PÚBLICA","RESUMEN DE COSTOS AP","AUXILIAR COSTO ADMINISTRACIÓN","TIEMPO DE RESPUESTA","CANAL ATENCIÓN","RESUMEN"],"not_rendered":{"charts":0,"images":7,"macros":1,"external_links":0,"defined_names":0,"comments":5,"pivot_tables":0},"unopened":[],"bounds":{"document_bytes":16777216,"sheet_cells":100000,"rows_first":2000,"rows_last":500,"rows_between":2000,"halvings":0,"cell_chars":16384,"cell_head_chars":4096},"cells_cut":0,"cells_raw":0,"read":"whole","date_system":"1900"}

{"sheet":"Instructivo","index":0,"n_rows":70,"n_cols":1,"rows_kept":70,"cut":false,"hidden":false,"merged":[]}
["CRITERIO DE PRIORIZACIÓN DE TRÁMITES ADMINISTRATIVOS"]
["Instructivo"]
["Consideraciones generales"]
[]
["En las hojas “COSTO DE ADMINISTRACIÓN PÚBLICA”y “RESUMEN”  para añadir más trámites y que apliquen las fórmulas, se deberá seleccionar la primera fila y copiarla una por cada trámite de la entidad"]
[]
["Todas las hojas tienen columnas de color celeste, en las cuales NO deben ingresar valores ya que contienen fórmulas."]
["Para la carga en GOB.EC. La institución debe recordar que el peso máximo del archivo es de 2 MB."]
["Esquema de puntuación"]
["Para priorizar un trámite, se realizará un análisis de criterios básicos y adicionales basado en información que disponen las instituciones sujetas a esta norma técnica. Cada criterio será puntuado según los lineamientos presentes en esta norma."]
["a) Demanda Anual"]
["Considerará el volumen o frecuencia de las solicitudes que ingresan al año a cada institución para la gestión de un trámite en particular."]
["La identificación del volumen anual de los trámites se realizará a través de sus registros de transacciones y/o el número de visitas de consulta de información realizadas a través de páginas web institucionales."]
["Para realizar el registro realice lo siguiente:"]
["1.- Seleccione la hoja DEMANDA ANUAL"]
["2.- Ingrese los trámites de la institución registrando el identificador y nombre en las columnas respectivas.  "]
["3.- Para cada trámite debe especificar en la columna DEMANDA ANUAL el volumen o frecuencia anual, de acuerdo a lo mencionado anteriormente."]
["4.- Una vez terminado el llenado solicitado presione el botón PUNTUACIÓN, se ordenara de menor a mayor. "]
["5.- Usted visualizará el ordenamiento de los trámites ingresados de acuerdo al número de  volumen o frecuencia anual."]
["6.- Así mismo, usted visualizará el puntaje obtenido en la columna PUNTUACIÓN de acuerdo al grupo obtenido por cada trámite de acuerdo al número de volumen o frecuencia anual cosiderando lo siguiente: ** Primer grupo (trámites con menor demanda no incluye los trámites con demanda 0 ) = 3\n** Segundo grupo (trámites con demanda intermedia) = 6\n** Tercer grupo (trámites con mayor demanda) = 10"]
["Cada vez que requiera actualizar el puntaje presionando el botón puntuación, debe verificar que la celda de la columna puntaje se encuentren vacías, es decir, se debe borrar cualquier valor de puntaje obtenido previamente."]
["b) Volumen de quejas asociadas a un trámite: "]
["Considerará la cantidad de quejas recibidas en relación a un trámite durante un año. Estas quejas deberán estar documentadas en medios físicos y/o digitales."]
["Para determinar la puntuación, se colocará en una tabla todos los trámites con sus correspondientes quejas ordenándose de menor a mayor. Se dividirá en 2 partes en los que cada grupo contenga la misma cantidad de trámites."]
["Para realizar el registro realice lo siguiente:"]
["1.- Seleccione la hoja VOLUMEN DE QUEJAS"]
["2.- Ingrese los trámites de la institución registrando el identificador y nombre en las columnas respectivas.  Si usted requiere de acuerdo al número de trámites copie filas adicionales que estén dentro del cuadro"]
["3.- Para cada trámite debe especificar en la columna VOLUMEN QUEJAS el número de quejas anual, de acuerdo a lo mencionado anteriormente."]
["4.- Una vez terminado el llenado solicitado presione el botón PUNTUACIÓN."]
["5.- Usted visualizará el ordenamiento de los trámites ingresados de acuerdo al número de  volumen o frecuencia anual."]
["6.- Así mismo, usted visualizará el puntaje obtenido en la columna PUNTUACIÓN de acuerdo al grupo obtenido por cada trámite de acuerdo al número de volumen o frecuencia anual cosiderando lo siguiente: La puntuación se basará en los siguientes grupos:\n** Primer grupo (trámites con menor cantidad de quejas, no incluye los trámites con queja 0 ) = 4\n** Segundo grupo (trámites con mayor porcentaje de quejas) = 10"]
["El valor del volumen de quejas no debe ser superior al valor del volumen de la demana, no le permitirá registrar un valor."]
["c) Costo para la administración pública: "]
["En cada trámite, basado en un caso estándar, se deberá estimar el costo incurrido en el costo de personal y recursos necesarios para su atención desde que el administrado entregó todos los requisitos hasta que la institución entregue el producto, respuesta o servicio requerido en el trámite. Se considerará:"]
["• Costo de personal:"]
["Costo del personal para atender el trámite, se excluyen actividades realizadas automáticamente o que dependen del administrado. El tiempo deberá considerar únicamente el tiempo efectivo de trabajo del personal, no debe considerar el tiempo de espera o de movimiento."]
["• Costo de recursos:"]
["Se deberá considerar el costo directo en el que la institución debe incurrir para atender un trámite. Se debe considerar los insumos o materia prima necesaria u cualquier otro que la institución considere pertinente."]
["Para realizar el registro realice lo siguiente:"]
["1.- Seleccione la hoja COSTO ADMINISTRACIÓN PÚBLICA"]
["2.- Ingrese los trámites de la institución registrando el identificador y nombre en las columnas respectivas.  Si usted requiere de acuerdo al número de trámites copie filas adicionales que estén dentro del cuadro"]
["3.- Para calcular el tiempo de las actividades, utilizar la hoja AUXILIAR COSTO ADMINISTRACIÓN donde deberá listar todas las actividades que realiza la institución en un caso estándar y asignar el tiempo mínimo que toma cada actvidad (en horas). El tiempo total de las actividades, deberá ingresar en la correspondiente celda de la hoja COSTO ADMINISTRACIÓN PÚBLICA"]
["4.- En función de la información registrada en el paso 3, la matriz entregará el costo del personal"]
["5.- Completar la columna \"Costo recursos\", en la cual ingresará el costo directo en el que incurre la institución para entregar el trámite. En este valor se considerarán los valores correspondientes a insumos y/o materia prima mínimos que se invierten por cada trámite (no se considera mano de obra)"]
["6.- La columna \"Costo para la adm. pública\" mostrará el costto de este criterio para cada trámite"]
["7,- Para que la fórmula funcione debe arrastrar hacia abajo al último de los támites ingresados, no copiar"]
["7.- Una vez que disponga del Costo para la administración pública, presionar el botón \"GENERAR\"."]
["8. Visualizar la hoja “RESUMEN DE COSTO AP” en la que va a encontrar copiada las celdas necesarias para el ordenamiento y puntuación de las mismas al presionar el botón “PUNTUACIÓN”"]
[]
["d) Tiempo de respuesta: "]
["Considerará los tiempos que a las instituciones les toma dar respuesta a un trámite desde que reciben la solicitud del administrado hasta la finalización del mismo. Para la definición del tiempo se considerará un caso estándar."]
["Para determinar la puntuación, se colocará en una tabla todos los trámites con el tiempo de respuesta, ordenándose de menor a mayor. Se dividirá en 4 grupos, en los que cada uno contenga la misma cantidad de trámites."]
["Para realizar el registro realice lo siguiente:"]
["1.- Seleccione la hoja TIEMPO DE RESPUESTA"]
["2.- Ingrese los trámites de la institución registrando el identificador y nombre en las columnas respectivas.  Si usted requiere de acuerdo al número de trámites copie filas adicionales que estén dentro del cuadro"]
["3.- Para cada trámite debe especificar en la columna TIEMPO RESPUESTA el tiempo, de acuerdo a lo mencionado anteriormente."]
["4.- Una vez terminado el llenado solicitado presione el botón PUNTUACIÓN."]
["5.- Usted visualizará el ordenamiento de los trámites ingresados de acuerdo al número de  volumen o frecuencia anual."]
["6.- Así mismo, usted visualizará el puntaje obtenido en la columna PUNTUACIÓN de acuerdo al grupo obtenido por cada trámite de acuerdo al número de volumen o frecuencia anual cosiderando lo siguiente:  La puntuación considera lo siguiente:\n** Primer grupo (menor o igual a 40 horas laboralres) = 0\n** Segundo grupo mayor  40 horas laboralres) = 30"]
["e) Canal de atención: "]
["Considerará los canales de atención a través de los cuales el administrado puede iniciar el trámite."]
["Para realizar el registro realice lo siguiente:"]
["1.- Seleccione la hoja CANAL ATENCIÓN"]
["2.- Ingrese los trámites de la institución registrando el identificador y nombre en las columnas respectivas.  Si usted requiere de acuerdo al número de trámites copie filas adicionales que estén dentro del cuadro"]
["3.- Para cada trámite debe seleccionar el canal de atención del trámite en la columna CANAL ATENCIÓN, que pueden ser: \nEl trámite se puede completar totalmente en línea: Se considera trámite totalmente en línea cuando el administrado no requiere realizar ninguna interacción presencial con la institución = 0\nEl trámite no se puede completar totalmente en línea: Se considera este caso, cuando el trámite incluye al menos una actividad, incluido mecanismos de pago, en la que el administrado deba acudir presencialmente a la institución, para la realización de dicho trámite. Los trámites presenciales se consideran dentro de esta categoría = 10"]
["4.- De acuerdo a la selección usted obtendrá la puntuación del trámite que se visualizará en la columna PUNTUACIÓN."]
[]
["f) Resumen"]
["En esta hoja deberá consolidar todas las puntuaciones obtenidas para cada trámite en los criterios a) hasta e). Adicionalmente deberá analizar los criterios adicionales que dispone la norma técnica, para estos últimos solamente deberá seleccionar en la celda correspondiente y la matriz asignará la puntuación adicional. Los criterios que deberá considerar son:\n- NECESIDADES CIUDADANAS: Si la institución ha implementado mecanismos para identificar necesidades ciudadanas respecto al trámite, seleccionar \"SI\", caso contrario, seleccionar \"NO\"\n- SUSCEPTIBILIDAD A CORRUPCIÓN: Si la institución dispone de información documentada sobre presuntos actos de corrupción, seleccionar \"SI\", caso contrario, seleccionar \"NO\"\n- VOLUMEN DE DEVOLUCIONES: Si la institución posee documentación sobre devoluciones del trámite en una cantidad significativa, seleccionar \"SI\", caso contrario, seleccionar \"NO\"\nPara que funcione la lista depelgable debe arrastrar la lista y la puntuación hacia abajo al último de los támites ingresados, no copiar"]
["En la columna puntaje total se realizará la sumatoria de los valores de los criterios básicos y adicionales. Este valor deberá registrarse en la plataforma GOB.EC"]

{"sheet":"DEMANDA ANUAL","index":1,"n_rows":22,"n_cols":4,"rows_kept":22,"cut":false,"hidden":false,"merged":[[0,0,0,3],[1,0,1,3]]}
["PRIORIZACIÓN DE TRÁMITES ADMINISTRATIVOS"]
["DEMANDA ANUAL"]
[]
["IDENTIFICADOR","TRÁMITE","DEMANDA ANUAL","PUNTAJE"]
["IIGE–015-02-01","Requerimiento de asistencia técnica en el ámbito energético",0,0]
["IIGE–014-06-01","Requerimiento de elaboración de ensayos en laboratorio caracterización térmica y elementos constructivos",0,0]
["IIGE–014-03-01","Requerimiento de elaboración de ensayos en laboratorio metalúrgico",0,0]
["IIGE–012-02-01","Ventas de mapas, publicaciones y reportes en temas geológicos en formato digital",0,0]
["IIGE–015-01-01","Requerimiento de asistencia técnica en el ámbito geológico",2,3]
["IIGE–014-05-01","Requerimiento de elaboración de ensayos en laboratorio biomasa",2,3]
["IIGE–014-07-01","Requerimiento de elaboración de ensayos en laboratorio ensayos térmicos y eficiencia energética",2,3]
["IIGE–014-02-01","Requerimiento de elaboración de ensayos en laboratorio petrográfico",2,3]
["IIGE–012-01-01","Venta de mapas, publicaciones y reportes en temas geológicos en formato físico",3,6]
["IIGE–013-03-01","Requerimiento de información relacionada con temas energéticos",11,6]
["IIGE–013-01-01","Requerimiento de información relacionada con temas geológicos disponible en biblioteca",12,6]
["IIGE–014-04-01","Requerimiento de elaboración de ensayos en laboratorio luminotecnia",17,6]
["IIGE–014-01-01","Requerimiento de elaboración de ensayos en laboratorio químico",20,10]
["IIGE–013-02-01","Requerimiento de información relacionada con temas geológicos",31,10]
["IIGE–011-01-02","Requerimiento de capacitación presencial en temas geológicos y energéticos",184,10]
["IIGE–011-02-01","Inscripción a capacitación virtual en temas geológicos y energéticos",732,10]
["IIGE–011-01-01","Requerimiento de capacitación en Pequeña Minería y Minería Artesanal a Titulares de Derechos Mineros",1326,10]
["IIGE–013-04-01","Registro de datos del usuario para acceso a la plataforma de información en temas energéticos",2301,10]

{"sheet":"VOLUMEN DE QUEJAS","index":2,"n_rows":22,"n_cols":6,"rows_kept":22,"cut":false,"hidden":false,"merged":[[0,0,0,5],[1,0,1,5]]}
["PRIORIZACIÓN DE TRÁMITES ADMINISTRATIVOS"]
["VOLUMEN DE QUEJAS"]
[]
["IDENTIFICADOR","TRÁMITE","VOLUMEN DEMANDA","VOLUMEN DE QUEJAS","PORCENTAJE","PUNTUACIÓN"]
["IIGE–015-02-01","Requerimiento de asistencia técnica en el ámbito energético",0,0,0,0]
["IIGE–014-06-01","Requerimiento de elaboración de ensayos en laboratorio caracterización térmica y elementos constructivos",0,0,0,0]
["IIGE–014-03-01","Requerimiento de elaboración de ensayos en laboratorio metalúrgico",0,0,0,0]
["IIGE–012-02-01","Ventas de mapas, publicaciones y reportes en temas geológicos en formato digital",0,0,0,0]
["IIGE–015-01-01","Requerimiento de asistencia técnica en el ámbito geológico",2,0,0,0]
["IIGE–014-05-01","Requerimiento de elaboración de ensayos en laboratorio biomasa",2,0,0,0]
["IIGE–014-07-01","Requerimiento de elaboración de ensayos en laboratorio ensayos térmicos y eficiencia energética",2,0,0,0]
["IIGE–014-02-01","Requerimiento de elaboración de ensayos en laboratorio petrográfico",2,0,0,0]
["IIGE–012-01-01","Venta de mapas, publicaciones y reportes en temas geológicos en formato físico",3,0,0,0]
["IIGE–013-03-01","Requerimiento de información relacionada con temas energéticos",11,0,0,0]
["IIGE–013-01-01","Requerimiento de información relacionada con temas geológicos disponible en biblioteca",12,0,0,0]
["IIGE–014-04-01","Requerimiento de elaboración de ensayos en laboratorio luminotecnia",17,0,0,0]
["IIGE–014-01-01","Requerimiento de elaboración de ensayos en laboratorio químico",20,0,0,0]
["IIGE–013-02-01","Requerimiento de información relacionada con temas geológicos",31,0,0,0]
["IIGE–011-01-02","Requerimiento de capacitación presencial en temas geológicos y energéticos",184,0,0,0]
["IIGE–011-02-01","Inscripción a capacitación virtual en temas geológicos y energéticos",732,0,0,0]
["IIGE–011-01-01","Requerimiento de capacitación en Pequeña Minería y Minería Artesanal a Titulares de Derechos Mineros",1326,0,0,0]
["IIGE–013-04-01","Registro de datos del usuario para acceso a la plataforma de información en temas energéticos",2301,0,0,0]

{"sheet":"COSTO ADMINISTRACIÓN PÚBLICA","index":3,"n_rows":23,"n_cols":9,"rows_kept":23,"cut":false,"hidden":false,"merged":[[0,0,0,5],[1,0,1,5],[3,0,4,0],[3,1,4,1],[3,2,3,4],[3,5,4,5]]}
["PRIORIZACIÓN DE TRÁMITES ADMINISTRATIVOS"]
["COSTOS PARA LA ADMINISTRACIÓN PÚBLICA"]
[]
["IDENTIFICADOR","TRÁMITE","INSUMOS PARA COSTO",null,null,"COSTO PARA LA ADM. PÚBLICA",null,"SBU",400]
[null,null,"TIEMPO (HORAS)","COSTO PERSONAL","COSTO RECURSOS"]
["IIGE–015-02-01","Requerimiento de asistencia técnica en el ámbito energético",135,337.5,322,{"$f":"D6+E6","v":659.5}]
["IIGE–014-06-01","Requerimiento de elaboración de ensayos en laboratorio caracterización térmica y elementos constructivos",40,100,131,{"$f":"D7+E7","v":231}]
["IIGE–014-03-01","Requerimiento de elaboración de ensayos en laboratorio metalúrgico",40,100,13,113]
["IIGE–012-02-01","Ventas de mapas, publicaciones y reportes en temas geológicos en formato digital",1,2.5,1,3.5]
["IIGE–015-01-01","Requerimiento de asistencia técnica en el ámbito geológico",480,1200,200,1400]
["IIGE–014-05-01","Requerimiento de elaboración de ensayos en laboratorio biomasa",40,100,60,160]
["IIGE–014-07-01","Requerimiento de elaboración de ensayos en laboratorio ensayos térmicos y eficiencia energética",36,90,101,191]
["IIGE–014-02-01","Requerimiento de elaboración de ensayos en laboratorio petrográfico",56,140,2000,2140]
["IIGE–012-01-01","Venta de mapas, publicaciones y reportes en temas geológicos en formato físico",1,2.5,1,3.5]
["IIGE–013-03-01","Requerimiento de información relacionada con temas energéticos",44,110,10,120]
["IIGE–013-01-01","Requerimiento de información relacionada con temas geológicos disponible en biblioteca",1,2.5,1,3.5]
["IIGE–014-04-01","Requerimiento de elaboración de ensayos en laboratorio luminotecnia",138,345,105,450]
["IIGE–014-01-01","Requerimiento de elaboración de ensayos en laboratorio químico",90,225,525,750]
["IIGE–013-02-01","Requerimiento de información relacionada con temas geológicos",40,100,10,110]
["IIGE–011-01-02","Requerimiento de capacitación presencial en temas geológicos y energéticos",100,250,30,280]
["IIGE–011-02-01","Inscripción a capacitación virtual en temas geológicos y energéticos",40,100,893,993]
["IIGE–011-01-01","Requerimiento de capacitación en Pequeña Minería y Minería Artesanal a Titulares de Derechos Mineros",240,600,30,630]
["IIGE–013-04-01","Registro de datos del usuario para acceso a la plataforma de información en temas energéticos",1,2.5,1,3.5]

{"sheet":"RESUMEN DE COSTOS AP","index":4,"n_rows":22,"n_cols":4,"rows_kept":22,"cut":false,"hidden":false,"merged":[[0,0,0,5],[1,0,1,5]]}
["PRIORIZACIÓN DE TRÁMITES ADMINISTRATIVOS"]
["COSTOS PARA LA ADMINISTRACIÓN PÚBLICA"]
[]
["IDENTIFICADOR","TRÁMITE","COSTO PARA LA ADM. PÚBLICA","PUNTUACIÓN"]
["IIGE–013-04-01","Registro de datos del usuario para acceso a la plataforma de información en temas energéticos",3.5,5]
["IIGE–013-01-01","Requerimiento de información relacionada con temas geológicos disponible en biblioteca",3.5,5]
["IIGE–012-01-01","Venta de mapas, publicaciones y reportes en temas geológicos en formato físico",3.5,5]
["IIGE–012-02-01","Ventas de mapas, publicaciones y reportes en temas geológicos en formato digital",3.5,5]
["IIGE–013-02-01","Requerimiento de información relacionada con temas geológicos",110,5]
["IIGE–014-03-01","Requerimiento de elaboración de ensayos en laboratorio metalúrgico",113,5]
["IIGE–013-03-01","Requerimiento de información relacionada con temas energéticos",120,10]
["IIGE–014-05-01","Requerimiento de elaboración de ensayos en laboratorio biomasa",160,10]
["IIGE–014-07-01","Requerimiento de elaboración de ensayos en laboratorio ensayos térmicos y eficiencia energética",191,10]
["IIGE–014-06-01","Requerimiento de elaboración de ensayos en laboratorio caracterización térmica y elementos constructivos",231,10]
["IIGE–011-01-02","Requerimiento de capacitación presencial en temas geológicos y energéticos",280,10]
["IIGE–014-04-01","Requerimiento de elaboración de ensayos en laboratorio luminotecnia",450,10]
["IIGE–011-01-01","Requerimiento de capacitación en Pequeña Minería y Minería Artesanal a Titulares de Derechos Mineros",630,20]
["IIGE–015-02-01","Requerimiento de asistencia técnica en el ámbito energético",659.5,20]
["IIGE–014-01-01","Requerimiento de elaboración de ensayos en laboratorio químico",750,20]
["IIGE–011-02-01","Inscripción a capacitación virtual en temas geológicos y energéticos",993,20]
["IIGE–015-01-01","Requerimiento de asistencia técnica en el ámbito geológico",1400,20]
["IIGE–014-02-01","Requerimiento de elaboración de ensayos en laboratorio petrográfico",2140,20]

{"sheet":"AUXILIAR COSTO ADMINISTRACIÓN","index":5,"n_rows":27,"n_cols":71,"rows_kept":27,"cut":false,"hidden":false,"merged":[[1,45,1,46],[1,53,1,54],[1,57,1,58],[1,1,1,2],[8,20,8,22]]}
["IDENTIFICADOR:","IIGE-011-01-01 ",null,null,"IDENTIFICADOR:","IIGE-011-01-02",null,null,"IDENTIFICADOR:","IIGE-011-02-01",null,null,"IDENTIFICADOR:","IIGE-012-01-01 ",null,null,"IDENTIFICADOR:","IIGE-012-02-01 ",null,null,"IDENTIFICADOR:","IIGE-013-01-01 ",null,null,"IDENTIFICADOR:","IIGE-013-02-01 ",null,null,"IDENTIFICADOR:","IIGE-013-03-01 ",null,null,"IDENTIFICADOR:","IIGE-013-04-01 ",null,null,"IDENTIFICADOR:","IIGE-014-01-01",null,null,"IDENTIFICADOR:","IIGE-014-02-01 ",null,null,"IDENTIFICADOR","IIGE–014-03-01",null,null,"IDENTIFICADOR:","IIGE-014-04-01",null,null,"IDENTIFICADOR","IIGE–014-05-01",null,null,"IDENTIFICADOR","IIGE–014-06-01",null,null,"IDENTIFICADOR:","IIGE-014-07-01 ",null,null,"IDENTIFICADOR:","IIGE-015-01-01 ",null,null,"IDENTIFICADOR:","IIGE-015-02-01 "]
["TRÁMITE:","Requerimiento de capacitación en Pequeña Minería y Minería Artesanal a Titulares de Derechos Mineros",null,null,"TRÁMITE:","Requerimiento de capacitación presencial en temas geológicos y energéticos",null,null,"TRÁMITE:","Inscripción a capacitación virtual en temas geológicos y energéticos",null,null,"TRÁMITE:","Ventas de mapas, publicaciones y reportes en temas geológicos en formato fisico",null,null,"TRÁMITE:","Ventas de mapas, publicaciones y reportes en temas geológicos en formato digital",null,null,"TRÁMITE:","Requerimiento de información relacionada con temas geológicos disponible en biblioteca",null,null,"TRÁMITE:","Requerimiento de información relacionada con temas geológicos",null,null,"TRÁMITE:","Requerimiento de información relacionada con temas energéticos",null,null,"TRÁMITE:","Registro de datos del usuario para acceso a la plataforma de información en temas energéticos",null,null,"TRÁMITE:","Requerimiento de elaboración de ensayos en laboratorio químico",null,null,"TRÁMITE:","Requerimiento de elaboración de ensayos en laboratorio petrográfico",null,null,"TRÁMITE:","Requerimiento de elaboración de ensayos en laboratorio metalúrgico",null,null,"TRÁMITE:","Requerimiento de elaboración de ensayos en laboratorio luminotecnia",null,null,"TRÁMITE:","Requerimiento de elaboración de ensayos en laboratorio biomasa",null,null,"TRÁMITE:","Requerimiento de elaboración de ensayos en laboratorio caracterización térmica y elementos constructivos",null,null,"TRÁMITE:","Requerimiento de elaboración de ensayos en laboratorio ensayos térmicos y eficiencia energética",null,null,"TRÁMITE:","Requerimiento de asistencia técnica en el ámbito geológico",null,null,"TRÁMITE:","Requerimiento de asistencia técnica en el ámbito energético"]
["NO.","ACTIVIDAD","TIEMPO (HORAS)",null,"NO.","ACTIVIDAD","TIEMPO (HORAS)",null,"NO.","ACTIVIDAD","TIEMPO (HORAS)",null,"NO.","ACTIVIDAD","TIEMPO (HORAS)",null,"NO.","ACTIVIDAD","TIEMPO (HORAS)",null,"NO.","ACTIVIDAD","TIEMPO (HORAS)",null,"NO.","ACTIVIDAD","TIEMPO (HORAS)",null,"NO.","ACTIVIDAD","TIEMPO (HORAS)",null,"NO.","ACTIVIDAD","TIEMPO (HORAS)",null,"NO.","ACTIVIDAD","TIEMPO (HORAS)",null,"NO.","ACTIVIDAD","TIEMPO (HORAS)",null,"NO.","ACTIVIDAD","TIEMPO (HORAS)",null,"NO.","ACTIVIDAD","TIEMPO (HORAS)",null,"NO.","ACTIVIDAD","TIEMPO (HORAS)",null,"NO.","ACTIVIDAD","TIEMPO (HORAS)",null,"NO.","ACTIVIDAD","TIEMPO (HORAS)",null,"NO.","ACTIVIDAD","TIEMPO (HORAS)",null,"NO.","ACTIVIDAD","TIEMPO (HORAS)"]
[1,"Remitir el oficio al Ministerio Rector para el inicio del proceso de capacitaciones",8,null,1,"Recibir y revisar el Oficio donde se solicita participar en los programas de capacitación que promueve el IIGE.",2.7,null,1,"Dirigirse a la plataforma de capacitación online ONIX a través del enlace: http://onix.geoenergia.gob.ec/",1.7000000000000001E-2,null,1,"Recepción de solicitud de información ",0.25,null,1,"Recepción de solicitud de información ",0.25,null,1,"Recepción de solictud de información disponible en biblioteca",0.25,null,1,"Reasignación de la solicitud de información al técnico correspondiente",4,null,1,"Reasignación de la solicitud de información al técnico correspondiente",4,null,1,"Respuesta de la plataforma sobre la información para el usuario ",0.25,null,1,"RECEPCIÓN DE LA SOLICITUD Y REASIGNADO ",0,null,1,"Recepción de solicitud con datos de contacto",2,null,1,"Recepción de solicitud de ensayo y reasignación",2,null,1,"Respuesta solicitud de información ",1,null,1,"Recepción de solicitud de ensayo y reasignación",2,null,1,"Realización del ensayo",27,null,1,"Realización del ensayo",24,null,1,"Recibir e ingresar la solicitud",0.33,null,1,"Recibir e ingresar la solicitud",0.33300000000000002]
[2,"Coordinación con la subsecretaría y las Coordinaciones Zonales del Ministerio",70,null,2,"Elaborar el cronograma que se va a implementar acorde al requerimiento, ubicación en oficinas del IIGE o en territorio, obtimización de tiempos de traslado y recursos acorde a cada solicitud",8,null,2,"Registrar nuevo usuario (Llenar formulario de inscripción)",8.3000000000000004E-2,null,2,"Gestionar el pago de la especie a adquirir y generar factura",0.25,null,2,"Gestionar el pago de la especie a adquirir y generar factura",0.25,null,2,"Preparación de la información solicitada",0.25,null,2,"Preparación de la información solicitada",24,null,2,"Preparación de la información solicitada",24,null,null,"SUMATORIA ACTIVIDADES",{"$f":"SUM(AI4:AI4)","v":0.25},null,2,"REVISIÓN DE LA SOLICITUD, FIRMA DE ACUERDO DE SERVICIO Y LLENADO DE LA CADENA DE CUSTODIA",1,null,2,"Envio de correo electrónico con información para entrega de muestras ",2,null,2,"Ingreso de muestras",0.5,null,2,"Respuesta a oficio de solicitud",24,null,2,"Ingreso de muestras",0.5,null,2,"Tiempo de respuesta de la solicitud",8,null,2,"Tiempo de respuesta de la solicitud",8,null,2,"Reasignar la solicitud",0.33,null,2,"Reasignar la solicitud",0.33300000000000002]
[3,"Elaborar el cronograma que se va a implementar acorde al requerimiento, ubicación en oficinas del IIGE o en territorio, obtimización de tiempos de traslado y recursos acorde a cada solicitud",16,null,4,"Revisar y aprobar el cronograma que se va a implementar por parte del Director de Área y Subdirector Técnico del IIGE.",4,null,3,"Confirmar registro a través de correo electrónico",3.3000000000000002E-2,null,3,"Receptar factura del pago",0.25,null,3,"Receptar factura del pago",0.25,null,3,"Entrega de información información para consulta in suti",0.25,null,3,"Revisión de la información ",8,null,3,"Revisión de la información ",12,null,null,null,null,null,3,"INGRESO DE MUESTRAS (REVISION DE MUESTRAS FISICAS, PESAJE, FIRMA DE CADENA DE CUSTODIA)",1,null,3,"Recibir y codificar muestras",0.5,null,3,"Preparación de muestras para ensayo",8,null,3,"Ingreso de ítems de ensayo",2,null,3,"Preparación de muestras para ensayo",24,null,3,"Tiempo de permanencia",1,null,3,"Tiempo de permanencia",1,null,3,"Analizar el personal, equipos e insumos requeridos",40,null,3,"Analizar el personal, equipos e insumos requeridos",8]
[4,"Revisar y aprobar el cronograma que se va a implementar por parte del Director de Área y Subdirector Técnico del IIGE.",8,null,5,"Elaborar y enviar el Oficio de respuesta donde se anexa el cronograma que se va a implementar en las capacitaciones, enviado por parte del IIGE al destinatario del oficio quien solicta participar en los programas de capacitación.",16,null,4,"Ingresar a la plataforma con el usuario y contraseña registrados",1.7000000000000001E-2,null,4,"Entrega de información información para consulta in suti",0.25,null,4,"Entrega de información información para consulta in suti",0.25,null,4,"Registro de devolucion de la información",0.25,null,4,"Envío de la información",4,null,4,"Envío de la información",4,null,null,null,null,null,4,"SECADO (DE 24 A 72 HORAS DEPENDIENDO DE LA MUESTRA) PROMEDIO",60,null,4,"Etiquetado con el código interno de preparación",1,null,4,"Desarrollo del ensayo de laboratorio",24,null,4,"Adecuación ítems previo ensayo",100,null,4,"Desarrollo del ensayo de laboratorio",8,null,4,"Tiempo de reuniones requeridas",2,null,4,"Tiempo de reuniones requeridas",2,null,4,"Elaborar respuesta y reasignar",8,null,4,"Elaborar respuesta y reasignar",8]
[5,"Elaborar y enviar el Oficio de respuesta donde se anexa el cronograma que se va a implementar en las capacitaciones, enviado por parte del IIGE al destinatario del oficio quien solicta participar en los programas de capacitación.",16,null,6,"Elaborar el material didactico: presentaciones; animaciones, gráficos, cuadros, fotos, videos, bibliografía en relación a las necesidades del sector minero, a los temas sugeridos por cada Coordinación Zonal de Minería y en relación a la actividad minera que se desarrolla en Territorio. ",30,null,5,"Preparación de curso de capacitación por parte del técnico ",8,null,null,"Sumatoria de actividades",{"$f":"SUM(O4:O7)","v":1},null,null,"Sumatoria de actividades",{"$f":"SUM(S4:S7)","v":1},null,null,"Sumatoria de actividades",{"$f":"SUM(W4:W7)","v":1},null,null,"SUMATORIA ACTIVIDADES",{"$f":"SUM(AA4:AA7)","v":40},null,null,"SUMATORIA ACTIVIDADES",{"$f":"SUM(AE4:AE7)","v":44},null,null,null,null,null,5,"PREPARACIÓN MECÁNICA (POR MUESTRA 35 MINUTOS, CONSIDERADO PROCESAMIENTO DE 12 MUESTRAS)",8,null,5,"Corte de muestras para láminas y contramuestras",12,null,5,"Procesamiento de datos",2,null,5,"Realización de ensayo",5,null,5,"Procesamiento de datos",2.5,null,5,"Llenado de formularios, solicitudes, reporte",2,null,5,"Llenado de formularios, solicitudes, reporte",1,null,5,"Planificar el trabajo de campo y de oficina",48,null,5,"Planificar el trabajo de campo y de oficina",24]
[6,"Elaborar el material didactico: presentaciones; animaciones, gráficos, cuadros, fotos, videos, bibliografía en relación a las necesidades del sector minero, a los temas sugeridos por cada Coordinación Zonal de Minería y en relación a la actividad minera que se desarrolla en Territorio. ",70.7,null,7,"Implementar la capacitación en las oficinas del IIGE o en territorio en temáticas  geológicas y energéticas. Incluye ronda de preguntas y solventar inquietudes o dudas de los asistentes por parte de los capacitadores.",4,null,6,"Revisión por parte del Comité Revisor",8,null,null,null,null,null,null,null,null,null,"Nota:  No se esta considerando los tiempos correspondiente de consulta realizada por el usuario",null,null,null,null,null,null,null,null,null,null,null,null,null,null,null,6,"FUNDICION",10,null,6,"Codificación para identificación en cada corte",2,null,6,"Elaboración del reporte",2,null,6,"Elaboración de informe",5,null,6,"Elaboración del reporte",2,null,null,"SUMATORIA ACTIVIDADES",{"$f":"SUM(BG4:BG8)","v":40},null,null,"SUMATORIA ACTIVIDADES",{"$f":"SUM(BK4:BK8)","v":36},null,6,"Solicitud y aprobación de salida",55.34,null,6,"Solicitud y aprobación de salida",40]
[7,"Implementar la capacitación en territorio en temáticas  geológicas y energéticas. Incluye ronda de preguntas y solventar inquietudes o dudas de los asistentes por parte de los capacitadores.",4,null,8,"Llenar las hojas de asistencia, encuestas de satisfacción y/o de conocimientos adquiridos.",1.3,null,7,"Correcciones o ajustes a la temática planteada ",4,null,null,null,null,null,null,null,null,null,null,null,null,null,null,null,null,null,null,null,null,null,null,null,null,null,7,"PREPARACIÓN QUÍMICA",5,null,7,"Pulido",6,null,7,"Envió de reporte solicitado",1.5,null,7,"Entrega de resultados",1,null,7,"Envió de reporte solicitado",1,null,null,null,null,null,null,null,null,null,7,"Trabajo de campo (puede variar dependiendo de la solicitud)",120,null,7,"Trabajo de campo (puede variar dependiendo de la solicitud)",16]
[8,"Llenar las hojas de asistencia, encuestas de satisfacción y/o de conocimientos adquiridos.",1.3,null,9,"Revisar el listado de asistencia a la capacitación mediante la plataforma del Registro Civil para constatar números de cédulas y nombres completos y/o revisión de datos en la plataforma de la Agencia de Regulación y Control Minero- ARCOM; para conocer la concesión minera y datos del titular minero al que representa el asistente.",2,null,8,"Grabación del Curso de capacitación",4,null,null,null,null,null,null,null,null,null,null,null,null,null,null,null,null,null,null,null,null,null,null,null,null,null,8,"LECTURA ANALITICA, REVISIÓN DE DATOS",3,null,8,"Adherido de muestras al portaobjetos",3.5,null,null,"SUMATORIA ACTIVIDADES",{"$f":"SUM(AU4:AU10)","v":40},null,null,"SUMATORIA ACTIVIDADES",{"$f":"SUM(AY4:AY10)","v":138},null,null,"SUMATORIA ACTIVIDADES",{"$f":"SUM(BC4:BC10)","v":40},null,null,null,null,null,null,null,null,null,8,"Análisis de información recopilada y elaboración de informe (puede variar dependiendo del tipo de solicitud)",120,null,8,"Análisis de información recopilada y elaboración de informe (puede variar dependiendo del tipo de solicitud)",24]
[9,"Revisar el listado de asistencia a la capacitación mediante la plataforma del Registro Civil para constatar números de cédulas y nombres completos y/o revisión de datos en la plataforma de la Agencia de Regulación y Control Minero- ARCOM; para conocer la concesión minera y datos del titular minero al que representa el asistente.",8,null,10,"Elaborar una matriz de asistencia con todos los datos verificados para proceder a elaborar los certificados de asistencia correspondientes.",2,null,9,"Preparación de curso en la plataforma de capacitación",4,null,null,null,null,null,null,null,null,null,null,null,null,null,null,null,null,null,null,null,null,null,null,null,null,null,9,"ELABORACIÓN DEL REPORTE",1,null,9,"Fraguado del cemento termoplástico",8,null,null,null,null,null,null,null,null,null,null,null,null,null,null,null,null,null,null,null,null,null,9,"Revisión de productos",40,null,9,"Revisión de productos",4]
[10,"Elaborar una matriz de asistencia con todos los datos verificados para proceder a elaborar los certificados de asistencia correspondientes.",8,null,11,"Elaborar y enviar el Oficio donde se anexa los certificados de asistencia a la capacitación, enviado por parte del IIGE al solicitante de los cursos de capacitación.",30,null,10,"Realización del curso de capacitación, tareas, cuestionarios, etc.",4,null,null,null,null,null,null,null,null,null,null,null,null,null,null,null,null,null,null,null,null,null,null,null,null,null,10,"ENVÍO DE REPORTE ORGANO REGULAR (ELABORACIÓN DE OFICIO, ESCANEO DE DOCUMENTOS ADJUNTOS)",1,null,10,"Desbaste de la muestra",8,null,null,null,null,null,null,null,null,null,null,null,null,null,null,null,null,null,null,null,null,null,10,"Entrega de productos",40,null,10,"Entrega de productos",2]
[11,"Elaborar y enviar el Oficio donde se anexa los certificados de asistencia a la capacitación, enviado por parte del IIGE al solicitante de los cursos de capacitación.",30,null,null,null,null,null,11,"Elaboración de certificados de asistencia",2,null,null,null,null,null,null,null,null,null,null,null,null,null,null,null,null,null,null,null,null,null,null,null,null,null,null,"SUMATORIA ACTIVIDADES",{"$f":"SUM(AM4:AM13)","v":90},null,11,"Preacabado de la muestra (pulido manual)",4,null,null,null,null,null,null,null,null,null,null,null,null,null,null,null,null,null,null,null,null,null,11,"Elaboración de respuesta y reasignar",8,null,11,"Elaboración de respuesta y reasignar",8]
[12,null,null,null,null,"SUMATORIA ACTIVIDADES",{"$f":"SUM(G4:G13)","v":100},null,12,"Tiempos de reasignaciones y agendas de reuniones ",5.85,null,null,null,null,null,null,null,null,null,null,null,null,null,null,null,null,null,null,null,null,null,null,null,null,null,null,null,null,null,12,"Adherido del cubreobjetos",4,null,null,null,null,null,null,null,null,null,null,null,null,null,null,null,null,null,null,null,null,null,null,"SUMATORIA ACTIVIDADES",{"$f":"SUM(BO4:BO14)","v":480},null,null,"SUMATORIA ACTIVIDADES",{"$f":"SUM(BS4:BS14)","v":134.666}]
[13,null,null,null,null,null,null,null,13,null,null,null,null,null,null,null,null,null,null,null,null,null,null,null,null,null,null,null,null,null,null,null,null,null,null,null,null,null,null,null,13,"Fraguado de la resina epóxica",1]
[14,null,null,null,null,null,null,null,14,null,null,null,null,null,null,null,null,null,null,null,null,null,null,null,null,null,null,null,null,null,null,null,null,null,null,null,null,null,null,null,14,"Limpieza y etiquetado",1]
[15,null,null,null,null,null,null,null,15,null,null,null,null,null,null,null,null,null,null,null,null,null,null,null,null,null,null,null,null,null,null,null,null,null,null,null,null,null,null,null,15,"Elaboración de acta de entrega de láminas delgadas",0.5]
[null,null,null,null,null,null,null,null,null,null,null,null,null,null,null,null,null,null,null,null,null,null,null,null,null,null,null,null,null,null,null,null,null,null,null,null,null,null,null,null,16,"Revisión y entrega de láminas delgadas",0.25]
[null,"SUMATORIA ACTIVIDADES",{"$f":"SUM(C4:C19)","v":240},null,null,null,null,null,null,"SUMATORIA ACTIVIDADES",{"$f":"SUM(K4:K19)","v":40},null,null,null,null,null,null,null,null,null,null,null,null,null,null,null,null,null,null,null,null,null,null,null,null,null,null,null,null,null,17,"Devolución de sobrantes al cliente",0.25]
[null,null,null,null,null,null,null,null,null,null,null,null,null,null,null,null,null,null,null,null,null,null,null,null,null,null,null,null,null,null,null,null,null,null,null,null,null,null,null,null,null,"SUMATORIA ACTIVIDADES",{"$f":"SUM(AQ4:AQ20)","v":56}]
[]
[]
[]
[]
[]
[null,null,null,null,null,null,null,null,null,null,null,null,null,null,null,null,null,null,null,null,null,null,null,null,null,"SUMATORIA ACTIVIDADES",40]

{"sheet":"TIEMPO DE RESPUESTA","index":6,"n_rows":22,"n_cols":4,"rows_kept":22,"cut":false,"hidden":false,"merged":[[0,0,0,3],[1,0,1,3]]}
["PRIORIZACIÓN DE TRÁMITES ADMINISTRATIVOS"]
["TIEMPO DE RESPUESTA"]
[]
["IDENTIFICADOR","TRÁMITE","TIEMPO RESPUESTA (horas laborables)","PUNTUACIÓN"]
["IIGE–015-02-01","Requerimiento de asistencia técnica en el ámbito energético",135,30]
["IIGE–014-06-01","Requerimiento de elaboración de ensayos en laboratorio caracterización térmica y elementos constructivos",40,0]
["IIGE–014-03-01","Requerimiento de elaboración de ensayos en laboratorio metalúrgico",40,0]
["IIGE–012-02-01","Ventas de mapas, publicaciones y reportes en temas geológicos en formato digital",1,0]
["IIGE–015-01-01","Requerimiento de asistencia técnica en el ámbito geológico",480,30]
["IIGE–014-05-01","Requerimiento de elaboración de ensayos en laboratorio biomasa",40,0]
["IIGE–014-07-01","Requerimiento de elaboración de ensayos en laboratorio ensayos térmicos y eficiencia energética",36,0]
["IIGE–014-02-01","Requerimiento de elaboración de ensayos en laboratorio petrográfico",56,30]
["IIGE–012-01-01","Venta de mapas, publicaciones y reportes en temas geológicos en formato físico",1,0]
["IIGE–013-03-01","Requerimiento de información relacionada con temas energéticos",44,30]
["IIGE–013-01-01","Requerimiento de información relacionada con temas geológicos disponible en biblioteca",1,0]
["IIGE–014-04-01","Requerimiento de elaboración de ensayos en laboratorio luminotecnia",138,30]
["IIGE–014-01-01","Requerimiento de elaboración de ensayos en laboratorio químico",90,30]
["IIGE–013-02-01","Requerimiento de información relacionada con temas geológicos",40,0]
["IIGE–011-01-02","Requerimiento de capacitación presencial en temas geológicos y energéticos",100,30]
["IIGE–011-02-01","Inscripción a capacitación virtual en temas geológicos y energéticos",40,0]
["IIGE–011-01-01","Requerimiento de capacitación en Pequeña Minería y Minería Artesanal a Titulares de Derechos Mineros",240,30]
["IIGE–013-04-01","Registro de datos del usuario para acceso a la plataforma de información en temas energéticos",0.25,0]

{"sheet":"CANAL ATENCIÓN","index":7,"n_rows":22,"n_cols":12,"rows_kept":22,"cut":false,"hidden":false,"merged":[[0,0,0,3],[1,0,1,3]]}
["PRIORIZACIÓN DE TRÁMITES ADMINISTRATIVOS"]
["CANAL DE ATENCIÓN"]
[null,null,null,null,null,null,null,null,"Totalmente en Línea",null,null,0]
["IDENTIFICADOR","TRÁMITE","CANAL ATENCIÓN","PUNTUACIÓN",null,null,null,null,"No se completa totalmente en línea.",null,null,10]
["IIGE–015-02-01","Requerimiento de asistencia técnica en el ámbito energético","No se completa totalmente en línea.",10]
["IIGE–014-06-01","Requerimiento de elaboración de ensayos en laboratorio caracterización térmica y elementos constructivos","No se completa totalmente en línea.",10]
["IIGE–014-03-01","Requerimiento de elaboración de ensayos en laboratorio metalúrgico","No se completa totalmente en línea.",10]
["IIGE–012-02-01","Ventas de mapas, publicaciones y reportes en temas geológicos en formato digital","No se completa totalmente en línea.",10]
["IIGE–015-01-01","Requerimiento de asistencia técnica en el ámbito geológico","No se completa totalmente en línea.",10]
["IIGE–014-05-01","Requerimiento de elaboración de ensayos en laboratorio biomasa","No se completa totalmente en línea.",10]
["IIGE–014-07-01","Requerimiento de elaboración de ensayos en laboratorio ensayos térmicos y eficiencia energética","No se completa totalmente en línea.",10]
["IIGE–014-02-01","Requerimiento de elaboración de ensayos en laboratorio petrográfico","No se completa totalmente en línea.",10]
["IIGE–012-01-01","Venta de mapas, publicaciones y reportes en temas geológicos en formato físico","No se completa totalmente en línea.",10]
["IIGE–013-03-01","Requerimiento de información relacionada con temas energéticos","No se completa totalmente en línea.",10]
["IIGE–013-01-01","Requerimiento de información relacionada con temas geológicos disponible en biblioteca","No se completa totalmente en línea.",10]
["IIGE–014-04-01","Requerimiento de elaboración de ensayos en laboratorio luminotecnia","No se completa totalmente en línea.",10]
["IIGE–014-01-01","Requerimiento de elaboración de ensayos en laboratorio químico","No se completa totalmente en línea.",10]
["IIGE–013-02-01","Requerimiento de información relacionada con temas geológicos","No se completa totalmente en línea.",10]
["IIGE–011-01-02","Requerimiento de capacitación presencial en temas geológicos y energéticos","No se completa totalmente en línea.",10]
["IIGE–011-02-01","Inscripción a capacitación virtual en temas geológicos y energéticos","Totalmente en Línea",0]
["IIGE–011-01-01","Requerimiento de capacitación en Pequeña Minería y Minería Artesanal a Titulares de Derechos Mineros","No se completa totalmente en línea.",10]
["IIGE–013-04-01","Registro de datos del usuario para acceso a la plataforma de información en temas energéticos","Totalmente en Línea",0]

{"sheet":"RESUMEN","index":8,"n_rows":21,"n_cols":25,"rows_kept":21,"cut":false,"hidden":false,"merged":[[1,0,2,0],[1,1,2,1],[1,2,2,2],[1,3,2,3],[1,4,2,4],[1,9,1,10],[1,11,1,12],[1,13,2,13],[0,2,0,6],[0,7,0,12],[1,5,2,5],[1,6,2,6],[1,7,1,8]]}
[null,null,"BÁSICOS",null,null,null,null,"ADICIONALES"]
["ID trámite","Nombre del trámite","Demanda","Quejas","Costo para administración","Tiempo de respuesta","Canal de atención","Necesidades ciudadanas",null,"Susceptibilidad a corrupción",null,"Volumen de devoluciones",null,"PUNTAJE TOTAL"]
[null,null,null,null,null,null,null,"Criterio","Puntuación","Criterio","Puntuación","Criterio","Puntuación",null,null,null,null,null,null,null,"demanda",0,3,6,10]
["IIGE–015-02-01","Requerimiento de asistencia técnica en el ámbito energético",0,0,20,30,10,"NO",{"$f":"IF(H4=\"SI\",5,0)","v":0},"NO",{"$f":"IF(J4=\"SI\",10,0)","v":0},"NO",{"$f":"IF(L4=\"SI\",5,0)","v":0},{"$f":"SUM(C4:G4,I4,K4,M4)","v":60},null,null,null,null,null,null,"quejas",0,4,10]
["IIGE–014-06-01","Requerimiento de elaboración de ensayos en laboratorio caracterización térmica y elementos constructivos",0,0,10,0,10,"NO",{"$f":"IF(H5=\"SI\",5,0)","v":0},"NO",{"$f":"IF(J5=\"SI\",10,0)","v":0},"NO",{"$f":"IF(L5=\"SI\",5,0)","v":0},{"$f":"SUM(C5:G5,I5,K5,M5)","v":20},null,null,null,null,null,null,"cpa",5,10,20]
["IIGE–014-03-01","Requerimiento de elaboración de ensayos en laboratorio metalúrgico",0,0,5,0,10,"NO",0,"NO",0,"NO",0,15,null,null,null,null,null,null,"tr",0,30]
["IIGE–012-02-01","Ventas de mapas, publicaciones y reportes en temas geológicos en formato digital",0,0,5,0,10,"NO",0,"NO",0,"NO",0,15,null,null,null,null,null,null,"ca",0,10]
["IIGE–015-01-01","Requerimiento de asistencia técnica en el ámbito geológico",3,0,20,30,10,"NO",0,"NO",0,"NO",0,63,null,null,null,null,null,null,null,"SI","NO"]
["IIGE–014-05-01","Requerimiento de elaboración de ensayos en laboratorio biomasa",3,0,10,0,10,"NO",0,"NO",0,"NO",0,23]
["IIGE–014-07-01","Requerimiento de elaboración de ensayos en laboratorio ensayos térmicos y eficiencia energética",3,0,10,0,10,"NO",0,"NO",0,"NO",0,23]
["IIGE–014-02-01","Requerimiento de elaboración de ensayos en laboratorio petrográfico",3,0,20,30,10,"NO",0,"NO",0,"NO",0,63]
["IIGE–012-01-01","Venta de mapas, publicaciones y reportes en temas geológicos en formato físico",6,0,5,0,10,"NO",0,"NO",0,"NO",0,21]
["IIGE–013-03-01","Requerimiento de información relacionada con temas energéticos",6,0,10,30,10,"NO",0,"NO",0,"NO",0,56]
["IIGE–013-01-01","Requerimiento de información relacionada con temas geológicos disponible en biblioteca",6,0,5,0,10,"NO",0,"NO",0,"NO",0,21]
["IIGE–014-04-01","Requerimiento de elaboración de ensayos en laboratorio luminotecnia",6,0,10,30,10,"NO",0,"NO",0,"NO",0,56]
["IIGE–014-01-01","Requerimiento de elaboración de ensayos en laboratorio químico",10,0,20,30,10,"NO",0,"NO",0,"NO",0,70]
["IIGE–013-02-01","Requerimiento de información relacionada con temas geológicos",10,0,5,0,10,"NO",0,"NO",0,"NO",0,25]
["IIGE–011-01-02","Requerimiento de capacitación presencial en temas geológicos y energéticos",10,0,10,30,10,"NO",0,"NO",0,"NO",0,60]
["IIGE–011-02-01","Inscripción a capacitación virtual en temas geológicos y energéticos",10,0,20,0,0,"NO",0,"NO",0,"NO",0,30]
["IIGE–011-01-01","Requerimiento de capacitación en Pequeña Minería y Minería Artesanal a Titulares de Derechos Mineros",10,0,20,30,10,"NO",0,"NO",0,"NO",0,70]
["IIGE–013-04-01","Registro de datos del usuario para acceso a la plataforma de información en temas energéticos",10,0,5,0,0,"NO",0,"NO",0,"NO",0,15]